Cogmind - Beta 13 @@@ ROGUE MODE // 2024.07.10 @ 12:22:46 Player: weedlord420 Result: Destroyed by O5-2WI(R) with Subdweller Machine Gun Performance ------------- Evolutions (0) 0 Regions Visited (3) 600 Robots Destroyed (32) 160 Value Destroyed (671) 671 Prototype IDs (5) 100 Alien Tech Used (0) 0 Bonus (0) 0 TOTAL SCORE: 1531 Bonus ------- None Cogmind --------- Core Integrity 0/250 Matter 290/300 Energy 158/160 System Corruption 0% Temperature Cool (1) Movement Treading (160) Location -10/Subcaves Parts ------- > --- POWER (1) -------- Light Nuclear Core > --- PROPULSION (2) --- Light Treads > --- UTILITY (2) ------ Medium Storage Unit Transport Network Coupler > --- WEAPON (2) ------- Improved Medium Laser > --- INVENTORY (10) --- Ion Engine Heat Sink Improved Heat Sink Utility Shielding Shield Generator Improved Medium Laser Improved Medium Laser Grenade Launcher Rocket Launcher Peak State ------------ > --- POWER ------------ Light Nuclear Core > --- PROPULSION ------- Light Treads Light Treads > --- UTILITY ---------- Medium Storage Unit Transport Network Coupler > --- WEAPON ----------- Improved Medium Laser Assault Rifle > --- INVENTORY -------- Ion Engine Light Treads Heat Sink Utility Shielding Shield Generator Improved Medium Laser Improved Medium Laser Grenade Launcher [Rating: 12] Favorites ----------- Power Light Nuclear Core Engine Ion Engine Power Core Light Nuclear Core Propulsion Light Treads Treads Light Treads Utility Medium Storage Unit Storage Medium Storage Unit Processor Transport Network Coupler Weapon Assault Rifle Energy Gun Improved Medium Laser Ballistic Gun Assault Rifle Build | -11 -10 -10 -10 ------- Run | Yrd Mat Min Sub Slots Evolved . | . . . . Power . | . . . . Propulsion . | . . . . Utility . | . . . . Weapon . | . . . . Parts Attached 19 | 6 7 4 2 Power 4 | 1 1 2 . Engine 2 | 1 . 1 . Core 2 | . 1 1 . Reactor . | . . . . Propulsion 4 | 2 . 1 1 Treads 4 | 2 . 1 1 Leg . | . . . . Wheel . | . . . . Hover . | . . . . Flight . | . . . . Utility 4 | 1 3 . . Device . | . . . . Storage 2 | 1 1 . . Processor 2 | . 2 . . Hackware . | . . . . Protection . | . . . . Artifact . | . . . . Weapon 7 | 2 3 1 1 Energy Gun 1 | . . 1 . Energy Cannon . | . . . . Ballistic Gun 6 | 2 3 . 1 Ballistic Cannon . | . . . . Launcher . | . . . . Special Weapon . | . . . . Impact Weapon . | . . . . Slashing Weapon . | . . . . Piercing Weapon . | . . . . Special Melee Weapon . | . . . . Unidentified Prototypes . | . . . . Parts Lost 9 | . 3 4 2 Power 2 | . 1 1 . Propulsion 3 | . . 2 1 Utility . | . . . . Weapon 4 | . 2 1 1 Highest Loss Streak 2 | . 2 2 2 To Critical Strikes . | . . . . Average Slot Usage (%) 92 | . 89 98 82 Engine 2 | . 1 4 . Core 10 | . 11 9 14 Treads 27 | . 28 26 14 Storage 14 | . 14 14 14 Processor 9 | . 6 14 14 Energy Gun 3 | . . 7 14 Ballistic Gun 23 | . 26 20 11 Naked Turns . | . . . . Heaviest Build 22 | 11 19 20 22 Greatest Support 40 | 40 40 40 20 Greatest Overweight (x) 1 | . . . 1 Average Overweight (x) . | . . . . Largest Inventory Capacity 10 | 8 10 10 10 Average Capacity 9 | 7 9 10 10 Most Carried 10 | 5 10 10 10 Average Carried 5 | 1 3 8 9 Final Capacity 10 | 8 10 10 10 Final Carried 10 | . 10 10 9 Class Distribution -------------------- 100% | Mutant Dominant Class ---------------- Mutant | -10/Materials Mutant | -10/Mines Mutant | -10/Subcaves Resources | -11 -10 -10 -10 ----------- Run | Yrd Mat Min Sub Matter Collected 875 | 221 516 128 10 Remotely . | . . . . Salvage Created 1025 | . 650 375 . Parts 68 | . 44 24 . Haulers Intercepted 1 | . 1 . . Recyclers Shooed 3 | . 3 . . Parts Field Recycled . | . . . . Retrieved Matter . | . . . . Parts Self-Destructed . | . . . . Prevented . | . . . . Kills | -11 -10 -10 -10 ------- Run | Yrd Mat Min Sub Combat Hostiles Destroyed 21 | . 12 9 . Guns 21 | . 12 9 . Classes Destroyed 9 | . 8 1 . Worker 1 | . 1 . . Builder 2 | . 1 1 . Tunneler 2 | . 1 1 . Hauler 1 | . 1 . . Recycler 1 | . . 1 . Operator 1 | . 1 . . Watcher 3 | . 3 . . Swarmer 8 | . 3 5 . Grunt 13 | . 9 4 . Best Kill Streak 3 | . 3 3 . Combat Bots Only 3 | . 3 2 . Max Kills in Single Turn 2 | . 1 2 . Gunslinging . | . . . . Exploded . | . . . . Melee . | . . . . Uniques/NPCs Destroyed . | . . . . Combat | -11 -10 -10 -10 -------- Run | Yrd Mat Min Sub Hostile Shots Fired 145 | . 81 51 13 Missed 46 | . 27 16 3 Damage Taken 1421 | . 685 397 339 Core 265 | . 82 48 135 Absorbed by Shields . | . . . . Core Remaining (%) 100 | 100 . . . Volleys Fired 114 | . 82 29 3 Largest 2 | . 2 2 2 Hottest 86 | . 40 76 86 Shots Fired 205 | . 143 58 4 Gun 205 | . 143 58 4 Cannon . | . . . . Launcher . | . . . . Special . | . . . . Kinetic 180 | . 143 36 1 Thermal 25 | . . 22 3 Explosive . | . . . . Electromagnetic . | . . . . Robot Hit Streak 9 | . 9 6 5 Robot Miss Streak 4 | . 4 3 . Penetration Max . | . . . . Secondary Targets 2 | . 1 1 . Max Gunslinging Chain 1 | . 1 1 . Shots Hit Robots 128 | . 90 34 4 Core Hits 51 | . 33 18 . Critical Kills . | . . . . Critical Parts Destroyed . | . . . . Critical Strikes 2 | . . 1 1 Burn 2 | . . 1 1 Melee Attacks . | . . . . Impact . | . . . . Slashing . | . . . . Piercing . | . . . . Sneak Attacks . | . . . . Combat Hostiles . | . . . . Follow-up Attacks . | . . . . Damage Inflicted 1757 | . 1183 498 76 Guns 1752 | . 1181 495 76 Cannons . | . . . . Explosions . | . . . . Melee . | . . . . Ramming 5 | . 2 3 . Kinetic 1493 | . 1181 290 22 Thermal 259 | . . 205 54 Explosive . | . . . . Electromagnetic . | . . . . Impact . | . . . . Slashing . | . . . . Piercing . | . . . . Highest Corruption . | . . . . Average Corruption . | . . . . Corruption Purged . | . . . . Corruption Blocked . | . . . . Overload Shots . | . . . . Overflow Damage . | . . . . Projectiles . | . . . . Explosions . | . . . . Melee . | . . . . Knockbacks . | . . . . Impact . | . . . . Kinetic . | . . . . Secondary . | . . . . Self-Inflicted Damage . | . . . . Shots . | . . . . Rammed 2 | . 1 1 . Targets Rammed 3 | . 2 1 . Kicked . | . . . . Crushed 1 | . 1 . . Highest Temperature 135 | . 6 135 . Average Temperature 35 | . 1 46 . Received Heat Transfer 555 | . 339 216 . Siege Activations . | . . . . Robots Corrupted . | . . . . Combat Hostiles . | . . . . Parts Fried . | . . . . Impact Corruptions . | . . . . Robots Melted . | . . . . Combat Hostiles . | . . . . Parts Melted . | . . . . Heat Transferred 703 | . . 518 185 Parts Sabotaged . | . . . . Parts Stolen . | . . . . Parts Stripped . | . . . . Power Chain Reactions . | . . . . Alert | -11 -10 -10 -10 ------- Run | Yrd Mat Min Sub Peak Influence 224 | . 224 120 . Initial 13 | . . 13 . Average 54 | . 58 50 . Maximum Alert Level 1 | . 1 . . Low Security (%) 99 | 100 98 100 . Level 1 . | . 1 . . Level 2 . | . . . . Level 3 . | . . . . Level 4 . | . . . . Level 5 . | . . . . High Security . | . . . . Max Security . | . . . . Squads Dispatched 3 | . 3 . . Investigation 1 | . 1 . . Extermination . | . . . . Reinforcement 2 | . 2 . . Assault . | . . . . Garrison . | . . . . Intercept . | . . . . Searches Triggered . | . . . . Construction Impeded . | . . . . Haulers Reinforced . | . . . . Active Scanning Responses . | . . . . Cargo Convoy Interrupts . | . . . . Stealth | -11 -10 -10 -10 --------- Run | Yrd Mat Min Sub Distress Signals 1 | . 1 . . Communications Jammed . | . . . . Distress Signals . | . . . . Times Spotted 34 | . 20 11 3 Peak Tracking Total 4 | . 4 3 3 Tactical Retreats 2 | . . 2 . Traps | -11 -10 -10 -10 ------- Run | Yrd Mat Min Sub Traps Triggered 2 | . 2 . . Indirectly . | . . . . Trap Hack Attempts . | . . . . Triggered . | . . . . Disarmed 4 | . 4 . . Reprogrammed . | . . . . Reused . | . . . . Traps Extracted . | . . . . Installed . | . . . . Triggered . | . . . . Machines | -11 -10 -10 -10 ---------- Run | Yrd Mat Min Sub Machines Disabled . | . . . . Max in Single Turn . | . . . . Machines Repaired . | . . . . Machines Dismantled . | . . . . Machines Sabotaged . | . . . . Overloaded Fab Kills . | . . . . Hacking | -11 -10 -10 -10 --------- Run | Yrd Mat Min Sub Machines Accessed 5 | . 5 . . Terminals 5 | . 5 . . Fabricators . | . . . . Repair Stations . | . . . . Recycling Units . | . . . . Scanalyzers . | . . . . Garrison Access . | . . . . Total Hacks 15 | . 15 . . Successful 10 | . 10 . . Failed 5 | . 5 . . Catastrophic . | . . . . Database Lockouts . | . . . . Manual . | . . . . Terminals 15 | . 15 . . Fabricators . | . . . . Repair Stations . | . . . . Recycling Units . | . . . . Scanalyzers . | . . . . Garrison Access . | . . . . Terminal Hacks 10 | . 10 . . Record 1 | . 1 . . Prototype ID Bank 3 | . 3 . . Emergency Access Points 1 | . 1 . . Alert Level 1 | . 1 . . Unreport Threat 1 | . 1 . . Disarm Traps 1 | . 1 . . Registered Components 1 | . 1 . . Zone Layout 1 | . 1 . . Fabricator Hacks . | . . . . Repair Station Hacks . | . . . . Recycling Unit Hacks . | . . . . Scanalyzer . | . . . . Garrison Access Hacks . | . . . . Unauthorized Hacks . | . . . . Terminals . | . . . . Fabricators . | . . . . Repair Stations . | . . . . Recycling Units . | . . . . Scanalyzers . | . . . . Garrison Access . | . . . . Data Cores Recovered . | . . . . Used . | . . . . Hacking Detections 4 | . 4 . . Full Trace Events 1 | . 1 . . Feedback Events . | . . . . Feedback Blocked . | . . . . Robot Schematics Acquired . | . . . . Robots Built . | . . . . Authchips . | . . . . Time . | . . . . Total Robot Build Rating . | . . . . Part Schematics Acquired . | . . . . Parts Built . | . . . . Authchips . | . . . . Time . | . . . . Total Part Build Rating . | . . . . Parts Repaired . | . . . . Time . | . . . . Parts Recycled . | . . . . Recycled Matter . | . . . . Retrieved Matter . | . . . . Retrieved Components . | . . . . Parts Scanalyzed . | . . . . Part Schematics Acquired . | . . . . Parts Damaged . | . . . . Bothacking | -11 -10 -10 -10 ------------ Run | Yrd Mat Min Sub Used RIF Installer . | . . . . Robots Hacked . | . . . . Non-combat . | . . . . Combat . | . . . . Robot Hacks Applied . | . . . . Relay Couplers Released . | . . . . Fabnet Peak Effective % . | . . . . Robots Rewired . | . . . . Allies Hacked . | . . . . Hacks Repelled . | . . . . Allies | -11 -10 -10 -10 -------- Run | Yrd Mat Min Sub Total Allies . | . . . . Largest Group . | . . . . Highest-Rated Group . | . . . . Highest-Rated Ally . | . . . . Total Orders . | . . . . Ally Attacks . | . . . . Total Damage . | . . . . Kills . | . . . . Allies Corrupted . | . . . . Allies Melted . | . . . . Intel | -11 -10 -10 -10 ------- Run | Yrd Mat Min Sub Robot Analysis Total . | . . . . Derelict Logs Recovered 1 | . . 1 . Drone Launches . | . . . . Drone Recoveries . | . . . . Exploration | -11 -10 -10 -10 ------------- Run | Yrd Mat Min Sub Turns Passed 2475 | 48 1407 972 48 Spaces Moved 1140 | 35 699 386 20 Core 17 | 17 . . . Treads 1123 | 18 699 386 20 Legs . | . . . . Wheels . | . . . . Hover . | . . . . Flight . | . . . . Fastest Speed 50 | 50 160 160 160 Average Speed 158 | 106 160 160 196 Slowest Speed 240 | 160 160 160 240 Overloaded Moves . | . . . . Propulsion Burnouts . | . . . . Robots Hopped . | . . . . Cave-ins Triggered . | . . . . Exploration Rate (%) 45 | 3 98 79 2 Regions Visited 3 Branch Regions 2 Pre-discovered Areas . | . . . . Known Exits Taken . | . . . . Unknown Exits Taken 3 | 1 1 1 . Scrap Searched 2 | . . 1 1 Spaces Dug . | . . . . Terrain Destroyed . | . . . . Melee . | . . . . Projectile . | . . . . AOE . | . . . . Terrain Rammed . | . . . . Walls Destroyed . | . . . . Machines Disabled . | . . . . Actions | -11 -10 -10 -10 --------- Run | Yrd Mat Min Sub Total 1598 | 45 845 682 26 Wait 289 | . 31 258 . Move 1137 | 34 698 385 20 Hop . | . . . . Pick Up 29 | 5 20 4 . Fast Attach 1 | 1 . . . Attach 13 | 5 4 3 1 Detach . | . . . . Swap 5 | . 3 1 1 Drop 7 | . 5 1 1 Fire 114 | . 82 29 3 Melee . | . . . . Ram . | . . . . Kick . | . . . . Crush 3 | . 2 1 . Escape Stasis . | . . . . Rewire . | . . . . Trap . | . . . . Miscellaneous . | . . . . Route ------- -11/Scrapyard -10/Materials (discovered 4 exits: [*Mat x3] / [*Min]) -10/Mines (discovered 2 exits: [*Mat] / [*Sub]) -10/Subcaves History --------- Turn | Location | Event 4 | -11/Scrapyard | Discovered new exit (range 16) 49 | -11/Scrapyard | Entered Materials 303 | -10/Materials | Build established: Mutant 382 | -10/Materials | Discovered new exit (range 15) 676 | -10/Materials | Discovered new exit (range 6) 1014 | -10/Materials | Discovered new exit (range 14) 1158 | -10/Materials | Discovered new exit (range 15) 1456 | -10/Materials | Entered Mines 1761 | -10/Mines | Discovered new exit (range 6) 1986 | -10/Mines | Discovered new exit (range 14) 2070 | -10/Mines | Received a Rocket Launcher from a helpful Derelict 2354 | -10/Mines | Core integrity fell below 50% 2428 | -10/Mines | Entered Subcaves 2466 | -10/Subcaves | Ambushed by Subdweller buried in earth 2468 | -10/Subcaves | Ambushed by Subdweller buried in earth 2469 | -10/Subcaves | Core integrity fell below 20% 2476 | -10/Subcaves | Destroyed by O5-2WI(R) with Subdweller Machine Gun Last Messages --------------- K-01 Serf collects debris. Acquired Imp. Heat Sink. Acquired 1 matter. Slammed into K-01 Serf. LOCATION=UNKNOWN AMBIENT_HEAT=-10 GOAL=ESCAPE Searching scrap... Found Sub. Machine Gun. Found 26 Matter. Subatomizers dissect the Sub. Machine Gun. Dropped Assault Rifle. Acquired 10 matter. Subatomizers dissect the Assault Rifle. Lgt. Treads destroyed. Sub. Machine Gun destroyed. O5-2WI(R): "ARGHSUB!" 8I-LIQ(R) suffers critical hit (Burn). SL-EB4(R): "ARGHSUB!" Subatomizers dissect the Assault Rifle. Map ----- +----------------------------------------------------+ | ?????????????????????????????????????????????????? | | ?????????????????????????????????????????????????? | | ?????????????????????????????????????????????????? | | ?????????????????????????????????????????????????? | | ?????????????????????????????????????????????????? | | ?????????????????????????????????????????????????? | | ?????????????????????????????????????????????????? | | ?????????????????????????????????????????????????? | | ?????????????????????????????????????????????????? | | ?????????????????????????????????????????????????? | | ?????????????????????????????????????????????????? | | ?????????????????????????????????????????????????? | | ?????????????????????????????????????????????????? | | ????????????????????????#????????????????????????? | | ???????????????????????# ????????????????????????? | | ??????????????????????# ?????????????????????????? | | ????????????????????## ??????????????????????????? | | ??????????????????### #??????????????????????????? | | ??????????????????# %### #??????????????????????? | | ??????????????????# [# ######??????????????????? | | ????????????????#### ### " ???????????????????? | | ????????????????#; ????????????????????? | | ????????????????#; #?????????????????????? | | ???????????????## #?????????????????????? | | ???????????????# # # #???????????????? | | ???????????????# @ #???????????????? | | ???????????????# RR # ""#???????????????? | | ?????????? ##????????????????????? | | ???????? R #?????????????????????? | | ??????? # ## #?????????????????????? | | ???????##??#??## #### ###?????????????????????? | | ???????????????###???#####???????????????????????? | | ?????????????????????????????????????????????????? | | ?????????????????????????????????????????????????? | | ?????????????????????????????????????????????????? | | ?????????????????????????????????????????????????? | | ?????????????????????????????????????????????????? | | ?????????????????????????????????????????????????? | | ?????????????????????????????????????????????????? | | ?????????????????????????????????????????????????? | | ?????????????????????????????????????????????????? | | ?????????????????????????????????????????????????? | | ?????????????????????????????????????????????????? | | ?????????????????????????????????????????????????? | | ?????????????????????????????????????????????????? | | ?????????????????????????????????????????????????? | | ?????????????????????????????????????????????????? | | ?????????????????????????????????????????????????? | | ?????????????????????????????????????????????????? | | ?????????????????????????????????????????????????? | +----------------------------------------------------+ Best States ------------- Heat Dissipation 25 Energy Generation 14 Energy Capacity 250 Matter Stores 300 Matter Capacity 300 Sight Range 16 Terrain Scan Density 10 Evasion (%) 50 Targeting Accuracy 5 Recoil Reduction 2 Item Schematics ----------------- None Robot Schematics ------------------ None Fabricated ------------ Nothing Alien Tech Used ----------------- None Achievements -------------- None Challenges ------------ None Game ------ Seed GyrokineticCouplerBlaster Manual? 0 Play Time 00:11:11 Cumulative 25.6 hours Start 2024.07.10 @ 11:57:39 End 2024.07.10 @ 12:22:46 Sessions 1 Manual Loads 0 Difficulty Rogue Special Mode None Game No. 58 Rogue 57 Adventurer 1 Explorer 0 Win Type - Total 0 Types 0/0/0/0/0/0/0/0/0 Lore% 10 Gallery% 24 Achievement% 19 Wizard Run 0 Options --------- Layout 1 ASCII 0 Keyboard 0 Movement Mouse Keybinds 0 Fullscreen 2 Font 24/Terminus Map View 50x35 Zoom Use 0% Tactical HUD 0 Map Filters NONE Filters NONE Steam 1 RUN: 587651a9-cd25-442f-8d33-9ef2927bd01f